[Event "Titled Tuesday Blitz March 22 Early 2022"]
[White "Plotnikov, Pavel"]
[Black "Ruge, Edison"]
[WhiteFideId "4170342"]
[BlackFideId "4401000"]
[WhiteElo "2298"]
[BlackElo "2175"]
[Result "0-1"]
[Round "02"]
[TimeControl "180+1"]
[Date "2022.03.22"]
[WhiteClock "0:00:03"]
[BlackClock "0:02:02"]

1. e4 {[%clk 0:02:59]}  e5 {[%clk 0:02:59]} 2. Nf3 {[%clk 0:02:59]}  Nc6 {[%clk 0:03:00]} 3. Bb5 {[%clk 0:02:59]}  f5 {[%clk 0:03:00]} 4. d3 {[%clk 0:02:57]}  fxe4 {[%clk 0:03:00]} 5. dxe4 {[%clk 0:02:57]}  Nf6 {[%clk 0:03:01]} 6. O-O {[%clk 0:02:56]}  Bc5 {[%clk 0:03:01]} 7. Nc3 {[%clk 0:02:51]}  d6 {[%clk 0:03:00]} 8. Be3 {[%clk 0:02:44]}  Bb6 {[%clk 0:02:57]} 9. a4 {[%clk 0:02:37]}  O-O {[%clk 0:02:56]} 10. a5 {[%clk 0:02:25]}  Nxa5 {[%clk 0:02:50]} 11. Bxb6 {[%clk 0:02:09]}  cxb6 {[%clk 0:02:47]} 12. b4 {[%clk 0:02:04]}  Nc6 {[%clk 0:02:46]} 13. Bc4+ {[%clk 0:02:04]}  Kh8 {[%clk 0:02:45]} 14. Ng5 {[%clk 0:02:04]}  Qe8 {[%clk 0:02:44]} 15. Nd5 {[%clk 0:01:53]}  Nxd5 {[%clk 0:02:43]} 16. Qxd5 {[%clk 0:01:52]}  h6 {[%clk 0:02:38]} 17. Nf7+ {[%clk 0:01:46]}  Kh7 {[%clk 0:02:37]} 18. Nxd6 {[%clk 0:01:46]}  Qg6 {[%clk 0:02:35]} 19. c3 {[%clk 0:00:30]}  Bh3 {[%clk 0:02:28]} 20. g3 {[%clk 0:00:31]}  Bxf1 {[%clk 0:02:28]} 21. Rxf1 {[%clk 0:00:31]}  Rad8 {[%clk 0:02:20]} 22. Rd1 {[%clk 0:00:29]}  Rf6 {[%clk 0:02:18]} 23. Nxb7 {[%clk 0:00:05]}  Rxd5 {[%clk 0:02:16]} 24. Bxd5 {[%clk 0:00:05]}  Ne7 {[%clk 0:02:13]} 25. c4 {[%clk 0:00:05]}  Qg4 {[%clk 0:02:11]} 26. Rd2 {[%clk 0:00:03]}  Ng6 {[%clk 0:02:02]} 0-1


[Site "https://www.chess.com"]

[Event "Titled Tuesday Blitz March 22 Early 2022"]
[White "Prohorov, Olexandr"]
[Black "Lazavik, Denis"]
[WhiteFideId "14105578"]
[BlackFideId "13515110"]
[WhiteElo "1993"]
[BlackElo "2437"]
[Result "0-1"]
[Round "02"]
[TimeControl "180+1"]
[Date "2022.03.22"]
[WhiteClock "0:00:32"]
[BlackClock "0:01:04"]

1. Nf3 {[%clk 0:03:00]}  d5 {[%clk 0:02:59]} 2. d4 {[%clk 0:03:00]}  Nf6 {[%clk 0:02:59]} 3. c4 {[%clk 0:03:00]}  c6 {[%clk 0:02:59]} 4. Nc3 {[%clk 0:03:01]}  dxc4 {[%clk 0:02:59]} 5. a4 {[%clk 0:03:01]}  Bf5 {[%clk 0:02:59]} 6. Nh4 {[%clk 0:03:01]}  e6 {[%clk 0:02:59]} 7. Nxf5 {[%clk 0:03:00]}  exf5 {[%clk 0:03:00]} 8. e3 {[%clk 0:03:01]}  Bb4 {[%clk 0:02:58]} 9. Bxc4 {[%clk 0:03:01]}  O-O {[%clk 0:02:58]} 10. O-O {[%clk 0:03:01]}  Nbd7 {[%clk 0:02:59]} 11. Bd2 {[%clk 0:02:48]}  a5 {[%clk 0:02:58]} 12. Na2 {[%clk 0:02:43]}  Bxd2 {[%clk 0:02:56]} 13. Qxd2 {[%clk 0:02:43]}  Ne4 {[%clk 0:02:48]} 14. Qe2 {[%clk 0:02:41]}  Qe7 {[%clk 0:02:48]} 15. Nc3 {[%clk 0:02:37]}  Nd6 {[%clk 0:02:41]} 16. Bd3 {[%clk 0:02:33]}  Rfe8 {[%clk 0:02:37]} 17. Qf3 {[%clk 0:02:30]}  g6 {[%clk 0:02:36]} 18. Rfe1 {[%clk 0:02:27]}  Nf6 {[%clk 0:02:34]} 19. d5 {[%clk 0:02:14]}  c5 {[%clk 0:02:31]} 20. Rad1 {[%clk 0:02:11]}  Qe5 {[%clk 0:02:26]} 21. h3 {[%clk 0:01:45]}  Kg7 {[%clk 0:02:25]} 22. g3 {[%clk 0:01:43]}  h5 {[%clk 0:02:24]} 23. Kg2 {[%clk 0:01:42]}  h4 {[%clk 0:02:18]} 24. Qf4 {[%clk 0:01:38]}  hxg3 {[%clk 0:02:17]} 25. Qxe5 {[%clk 0:01:30]}  Rxe5 {[%clk 0:02:18]} 26. Kxg3 {[%clk 0:01:30]}  Nxd5 {[%clk 0:01:44]} 27. f4 {[%clk 0:01:14]}  Rxe3+ {[%clk 0:01:28]} 28. Rxe3 {[%clk 0:01:09]}  Nxe3 {[%clk 0:01:29]} 29. Re1 {[%clk 0:01:09]}  Nec4 {[%clk 0:01:29]} 30. b3 {[%clk 0:01:07]}  Nd2 {[%clk 0:01:26]} 31. Re7 {[%clk 0:01:05]}  Rd8 {[%clk 0:01:15]} 32. Kg2 {[%clk 0:00:49]}  Nxb3 {[%clk 0:01:09]} 33. Rc7 {[%clk 0:00:32]}  Ne8 {[%clk 0:01:04]} 0-1


[Site "https://www.chess.com"]

[Event "Titled Tuesday Blitz March 22 Early 2022"]
[White "Rosenberg, Evan S"]
[Black "Olsen, Filip Boe"]
[WhiteFideId "2019299"]
[BlackFideId "1440640"]
[WhiteElo "2299"]
[BlackElo "2188"]
[Result "0-1"]
[Round "02"]
[TimeControl "180+1"]
[Date "2022.03.22"]
[WhiteClock "0:00:01"]
[BlackClock "0:00:39"]

1. d4 {[%clk 0:03:00]}  Nf6 {[%clk 0:02:56]} 2. c4 {[%clk 0:03:00]}  e6 {[%clk 0:02:57]} 3. Nc3 {[%clk 0:03:00]}  Bb4 {[%clk 0:02:56]} 4. Nf3 {[%clk 0:02:59]}  O-O {[%clk 0:02:55]} 5. g3 {[%clk 0:02:57]}  b6 {[%clk 0:02:55]} 6. Bg2 {[%clk 0:02:57]}  Bb7 {[%clk 0:02:55]} 7. O-O {[%clk 0:02:57]}  Bxc3 {[%clk 0:02:52]} 8. bxc3 {[%clk 0:02:57]}  d6 {[%clk 0:02:52]} 9. a4 {[%clk 0:02:53]}  Nbd7 {[%clk 0:02:43]} 10. a5 {[%clk 0:02:52]}  Rc8 {[%clk 0:02:31]} 11. a6 {[%clk 0:02:41]}  Ba8 {[%clk 0:02:30]} 12. Ba3 {[%clk 0:02:24]}  Ne4 {[%clk 0:02:29]} 13. Qc2 {[%clk 0:02:22]}  f5 {[%clk 0:02:28]} 14. e3 {[%clk 0:02:14]}  c5 {[%clk 0:02:21]} 15. Rad1 {[%clk 0:02:03]}  Qe7 {[%clk 0:02:20]} 16. Rd3 {[%clk 0:01:38]}  Ndf6 {[%clk 0:02:14]} 17. h3 {[%clk 0:01:33]}  Kh8 {[%clk 0:02:12]} 18. Rfd1 {[%clk 0:01:33]}  g5 {[%clk 0:01:57]} 19. dxc5 {[%clk 0:01:24]}  bxc5 {[%clk 0:01:53]} 20. Nd2 {[%clk 0:01:04]}  Rfd8 {[%clk 0:01:45]} 21. Nxe4 {[%clk 0:01:03]}  Nxe4 {[%clk 0:01:42]} 22. Qe2 {[%clk 0:00:36]}  Rb8 {[%clk 0:01:36]} 23. Qh5 {[%clk 0:00:31]}  Rb6 {[%clk 0:01:14]} 24. g4 {[%clk 0:00:12]}  Rxa6 {[%clk 0:01:11]} 25. Bc1 {[%clk 0:00:10]}  Qe8 {[%clk 0:01:06]} 26. Qxe8+ {[%clk 0:00:09]}  Rxe8 {[%clk 0:01:06]} 27. gxf5 {[%clk 0:00:10]}  exf5 {[%clk 0:01:06]} 28. Bxe4 {[%clk 0:00:10]}  Bxe4 {[%clk 0:01:01]} 29. Rxd6 {[%clk 0:00:10]}  Ra1 {[%clk 0:00:57]} 30. Kh2 {[%clk 0:00:08]}  Rb8 {[%clk 0:00:53]} 31. Rd8+ {[%clk 0:00:07]}  Rxd8 {[%clk 0:00:53]} 32. Rxd8+ {[%clk 0:00:08]}  Kg7 {[%clk 0:00:54]} 33. Bd2 {[%clk 0:00:06]}  Rd1 {[%clk 0:00:53]} 34. Rd7+ {[%clk 0:00:05]}  Kg6 {[%clk 0:00:53]} 35. Rd6+ {[%clk 0:00:05]}  Kh5 {[%clk 0:00:54]} 36. Kg3 {[%clk 0:00:04]}  a5 {[%clk 0:00:48]} 37. f3 {[%clk 0:00:04]}  Bc2 {[%clk 0:00:48]} 38. e4 {[%clk 0:00:03]}  fxe4 {[%clk 0:00:45]} 39. fxe4 {[%clk 0:00:01]}  Bxe4 {[%clk 0:00:45]} 40. h4 {[%clk 0:00:01]}  gxh4+ {[%clk 0:00:39]} 0-1


[Site "https://www.chess.com"]

[Event "Titled Tuesday Blitz March 22 Early 2022"]
[White "Saldano Dayer, Horacio"]
[Black "Kett, Tim"]
[WhiteFideId "103411"]
[BlackFideId "1801210"]
[WhiteElo "2419"]
[BlackElo "2098"]
[Result "1-0"]
[Round "02"]
[TimeControl "180+1"]
[Date "2022.03.22"]
[WhiteClock "0:00:12"]
[BlackClock "0:00:18"]

1. e4 {[%clk 0:02:58]}  e5 {[%clk 0:02:59]} 2. Bc4 {[%clk 0:01:56]}  Nf6 {[%clk 0:02:57]} 3. d3 {[%clk 0:01:56]}  Nc6 {[%clk 0:02:57]} 4. Nf3 {[%clk 0:01:55]}  Be7 {[%clk 0:02:56]} 5. O-O {[%clk 0:01:53]}  d6 {[%clk 0:02:56]} 6. a4 {[%clk 0:01:52]}  Be6 {[%clk 0:02:54]} 7. Nc3 {[%clk 0:01:51]}  Bxc4 {[%clk 0:02:52]} 8. dxc4 {[%clk 0:01:51]}  O-O {[%clk 0:02:52]} 9. Re1 {[%clk 0:01:49]}  h6 {[%clk 0:02:42]} 10. Nd5 {[%clk 0:01:31]}  Nh7 {[%clk 0:02:31]} 11. Qd3 {[%clk 0:01:29]}  Ng5 {[%clk 0:02:29]} 12. Bxg5 {[%clk 0:01:24]}  Bxg5 {[%clk 0:02:26]} 13. g3 {[%clk 0:01:23]}  f5 {[%clk 0:01:56]} 14. exf5 {[%clk 0:01:19]}  Qd7 {[%clk 0:01:56]} 15. g4 {[%clk 0:01:17]}  Rae8 {[%clk 0:01:44]} 16. Nxg5 {[%clk 0:00:58]}  hxg5 {[%clk 0:01:43]} 17. c3 {[%clk 0:00:56]}  g6 {[%clk 0:01:41]} 18. Qe3 {[%clk 0:00:52]}  gxf5 {[%clk 0:01:35]} 19. Qxg5+ {[%clk 0:00:52]}  Qg7 {[%clk 0:01:35]} 20. Qxg7+ {[%clk 0:00:49]}  Kxg7 {[%clk 0:01:35]} 21. Nxc7 {[%clk 0:00:49]}  Re7 {[%clk 0:01:25]} 22. Nb5 {[%clk 0:00:47]}  Re6 {[%clk 0:01:06]} 23. h3 {[%clk 0:00:35]}  fxg4 {[%clk 0:00:56]} 24. hxg4 {[%clk 0:00:34]}  Rf4 {[%clk 0:00:56]} 25. f3 {[%clk 0:00:24]}  Rxf3 {[%clk 0:00:55]} 26. Re4 {[%clk 0:00:24]}  Rg6 {[%clk 0:00:52]} 27. Rd1 {[%clk 0:00:22]}  Rg3+ {[%clk 0:00:36]} 28. Kf2 {[%clk 0:00:22]}  R3xg4 {[%clk 0:00:35]} 29. Rxg4 {[%clk 0:00:22]}  Rxg4 {[%clk 0:00:36]} 30. Nxd6 {[%clk 0:00:22]}  Kf6 {[%clk 0:00:32]} 31. b3 {[%clk 0:00:20]}  Kg5 {[%clk 0:00:30]} 32. Nxb7 {[%clk 0:00:19]}  Kf4 {[%clk 0:00:30]} 33. Nd6 {[%clk 0:00:17]}  Rh4 {[%clk 0:00:29]} 34. Kg2 {[%clk 0:00:17]}  Rg4+ {[%clk 0:00:29]} 35. Kf1 {[%clk 0:00:16]}  Rg3 {[%clk 0:00:28]} 36. Nb5 {[%clk 0:00:15]}  e4 {[%clk 0:00:27]} 37. Rd6 {[%clk 0:00:14]}  Ne5 {[%clk 0:00:23]} 38. Rf6+ {[%clk 0:00:14]}  Ke3 {[%clk 0:00:22]} 39. Nd6 {[%clk 0:00:13]}  Nf3 {[%clk 0:00:19]} 40. Nf5+ {[%clk 0:00:12]}  Kf4 {[%clk 0:00:18]} 41. Nxg3+ {[%clk 0:00:13]}  Kxg3 {[%clk 0:00:19]} 42. Rxf3+ {[%clk 0:00:11]}  Kxf3 {[%clk 0:00:17]} 43. c5 {[%clk 0:00:12]}  e3 {[%clk 0:00:17]} 44. c6 {[%clk 0:00:12]}  e2+ {[%clk 0:00:17]} 45. Ke1 {[%clk 0:00:12]}  Ke3 {[%clk 0:00:17]} 46. c7 {[%clk 0:00:13]}  Kd3 {[%clk 0:00:17]} 47. c8=Q {[%clk 0:00:13]}  a5 {[%clk 0:00:18]} 48. Qc7 {[%clk 0:00:12]} 1-0


[Site "https://www.chess.com"]

[Event "Titled Tuesday Blitz March 22 Early 2022"]
[White "Samunenkov, Ihor"]
[Black "Tsyhanchuk, Stanislav"]
[WhiteFideId "14187086"]
[BlackFideId "13505130"]
[WhiteElo "2409"]
[BlackElo "2078"]
[Result "1-0"]
[Round "02"]
[TimeControl "180+1"]
[Date "2022.03.22"]
[WhiteClock "0:01:17"]
[BlackClock "0:00:19"]

1. d4 {[%clk 0:03:00]}  d5 {[%clk 0:02:59]} 2. c4 {[%clk 0:03:00]}  c6 {[%clk 0:02:59]} 3. Nf3 {[%clk 0:02:57]}  Nf6 {[%clk 0:02:52]} 4. g3 {[%clk 0:02:57]}  e6 {[%clk 0:02:47]} 5. Bg2 {[%clk 0:02:51]}  Nbd7 {[%clk 0:02:44]} 6. Qc2 {[%clk 0:02:48]}  Bd6 {[%clk 0:02:42]} 7. O-O {[%clk 0:02:45]}  O-O {[%clk 0:02:33]} 8. Nbd2 {[%clk 0:02:44]}  h6 {[%clk 0:02:30]} 9. e4 {[%clk 0:02:42]}  dxe4 {[%clk 0:02:28]} 10. Nxe4 {[%clk 0:02:42]}  Nxe4 {[%clk 0:02:27]} 11. Qxe4 {[%clk 0:02:43]}  Nf6 {[%clk 0:02:11]} 12. Qc2 {[%clk 0:02:41]}  c5 {[%clk 0:02:08]} 13. Rd1 {[%clk 0:02:30]}  cxd4 {[%clk 0:02:02]} 14. Nxd4 {[%clk 0:02:23]}  a6 {[%clk 0:01:57]} 15. c5 {[%clk 0:02:19]}  Be7 {[%clk 0:01:43]} 16. Nxe6 {[%clk 0:02:16]}  Qxd1+ {[%clk 0:01:03]} 17. Qxd1 {[%clk 0:02:16]}  Bxe6 {[%clk 0:01:04]} 18. Bxb7 {[%clk 0:02:07]}  Rad8 {[%clk 0:01:02]} 19. Qc2 {[%clk 0:02:07]}  Nd5 {[%clk 0:00:55]} 20. Bd2 {[%clk 0:01:52]}  Bf6 {[%clk 0:00:51]} 21. Ba5 {[%clk 0:01:47]}  Rb8 {[%clk 0:00:49]} 22. c6 {[%clk 0:01:46]}  g6 {[%clk 0:00:34]} 23. Rd1 {[%clk 0:01:34]}  Kg7 {[%clk 0:00:30]} 24. Qc5 {[%clk 0:01:23]}  Be7 {[%clk 0:00:27]} 25. Qa7 {[%clk 0:01:18]}  Bd6 {[%clk 0:00:21]} 26. Rxd5 {[%clk 0:01:16]}  Bxd5 {[%clk 0:00:21]} 27. Qd4+ {[%clk 0:01:17]}  Kg8 {[%clk 0:00:19]} 28. Qxd5 {[%clk 0:01:17]}  Be7 {[%clk 0:00:19]} 29. c7 {[%clk 0:01:17]} 1-0


[Site "https://www.chess.com"]

[Event "Titled Tuesday Blitz March 22 Early 2022"]
[White "Sanal, Vahap"]
[Black "Rastbod, Ali"]
[WhiteFideId "6300545"]
[BlackFideId "12567477"]
[WhiteElo "2603"]
[BlackElo "2200"]
[Result "0-1"]
[Round "02"]
[TimeControl "180+1"]
[Date "2022.03.22"]
[WhiteClock "0:00:01"]
[BlackClock "0:00:05"]

1. e4 {[%clk 0:03:00]}  e6 {[%clk 0:02:59]} 2. d4 {[%clk 0:03:00]}  d5 {[%clk 0:03:00]} 3. Nc3 {[%clk 0:03:01]}  Bb4 {[%clk 0:02:59]} 4. exd5 {[%clk 0:03:00]}  exd5 {[%clk 0:02:59]} 5. Bd3 {[%clk 0:03:01]}  Nf6 {[%clk 0:02:59]} 6. Nf3 {[%clk 0:03:00]}  O-O {[%clk 0:02:57]} 7. O-O {[%clk 0:03:01]}  h6 {[%clk 0:02:57]} 8. a3 {[%clk 0:03:00]}  Bxc3 {[%clk 0:02:50]} 9. bxc3 {[%clk 0:03:00]}  c5 {[%clk 0:02:51]} 10. Ne5 {[%clk 0:02:54]}  c4 {[%clk 0:02:44]} 11. Be2 {[%clk 0:02:54]}  Ne4 {[%clk 0:02:40]} 12. Qe1 {[%clk 0:02:50]}  Nc6 {[%clk 0:02:35]} 13. f3 {[%clk 0:02:17]}  Nd6 {[%clk 0:02:35]} 14. Nxc6 {[%clk 0:02:10]}  bxc6 {[%clk 0:02:36]} 15. Bf4 {[%clk 0:02:10]}  Re8 {[%clk 0:02:36]} 16. Qd2 {[%clk 0:02:06]}  Bf5 {[%clk 0:02:26]} 17. Rfe1 {[%clk 0:02:00]}  a5 {[%clk 0:02:08]} 18. a4 {[%clk 0:01:47]}  Nc8 {[%clk 0:01:58]} 19. Bf1 {[%clk 0:01:43]}  Rxe1 {[%clk 0:01:55]} 20. Qxe1 {[%clk 0:01:36]}  Bxc2 {[%clk 0:01:54]} 21. Qg3 {[%clk 0:01:36]}  Bg6 {[%clk 0:01:53]} 22. h4 {[%clk 0:01:36]}  Kh7 {[%clk 0:01:49]} 23. Be5 {[%clk 0:01:32]}  f6 {[%clk 0:01:47]} 24. Bf4 {[%clk 0:01:30]}  Qd7 {[%clk 0:01:36]} 25. Qh2 {[%clk 0:01:16]}  h5 {[%clk 0:01:25]} 26. Ra2 {[%clk 0:00:56]}  Ra7 {[%clk 0:01:18]} 27. g4 {[%clk 0:00:35]}  hxg4 {[%clk 0:00:59]} 28. h5 {[%clk 0:00:28]}  Bd3 {[%clk 0:00:56]} 29. Bg2 {[%clk 0:00:15]}  Rb7 {[%clk 0:00:52]} 30. Qg3 {[%clk 0:00:12]}  gxf3 {[%clk 0:00:42]} 31. Bxf3 {[%clk 0:00:13]}  Ne7 {[%clk 0:00:25]} 32. Rg2 {[%clk 0:00:12]}  Ng8 {[%clk 0:00:18]} 33. Kh2 {[%clk 0:00:06]}  Qf7 {[%clk 0:00:15]} 34. Bg4 {[%clk 0:00:04]}  Nh6 {[%clk 0:00:15]} 35. Bf3 {[%clk 0:00:04]}  Be4 {[%clk 0:00:12]} 36. Bxh6 {[%clk 0:00:04]}  gxh6 {[%clk 0:00:12]} 37. Bxe4+ {[%clk 0:00:04]}  dxe4 {[%clk 0:00:12]} 38. Qg4 {[%clk 0:00:04]}  f5 {[%clk 0:00:12]} 39. Qh4 {[%clk 0:00:04]}  Re7 {[%clk 0:00:12]} 40. Qg3 {[%clk 0:00:04]}  Qxh5+ {[%clk 0:00:11]} 41. Kg1 {[%clk 0:00:04]}  Qf7 {[%clk 0:00:10]} 42. Qf4 {[%clk 0:00:04]}  e3 {[%clk 0:00:10]} 43. Kf1 {[%clk 0:00:05]}  Qe6 {[%clk 0:00:07]} 44. Qg3 {[%clk 0:00:04]}  f4 {[%clk 0:00:05]} 45. Qh4 {[%clk 0:00:02]}  f3 {[%clk 0:00:03]} 46. Rg4 {[%clk 0:00:03]}  e2+ {[%clk 0:00:04]} 47. Ke1 {[%clk 0:00:03]}  Rf7 {[%clk 0:00:03]} 48. Re4 {[%clk 0:00:03]}  Qf5 {[%clk 0:00:03]} 49. Kf2 {[%clk 0:00:03]}  e1=Q+ {[%clk 0:00:03]} 50. Rxe1 {[%clk 0:00:03]}  Qc2+ {[%clk 0:00:04]} 51. Ke3 {[%clk 0:00:01]}  Qxc3+ {[%clk 0:00:04]} 52. Kf2 {[%clk 0:00:01]}  Qd2+ {[%clk 0:00:05]} 0-1


[Site "https://www.chess.com"]

[Event "Titled Tuesday Blitz March 22 Early 2022"]
[White "Sarkar, Justin"]
[Black "Omelja, Artem"]
[WhiteFideId "2010011"]
[BlackFideId "14119846"]
[WhiteElo "2038"]
[BlackElo "2382"]
[Result "1/2-1/2"]
[Round "02"]
[TimeControl "180+1"]
[Date "2022.03.22"]
[WhiteClock "0:01:29"]
[BlackClock "0:01:58"]

1. d4 {[%clk 0:02:55]}  d5 {[%clk 0:02:58]} 2. c4 {[%clk 0:02:54]}  c6 {[%clk 0:02:57]} 3. Nc3 {[%clk 0:02:53]}  Nf6 {[%clk 0:02:57]} 4. cxd5 {[%clk 0:02:53]}  cxd5 {[%clk 0:02:56]} 5. Bg5 {[%clk 0:02:53]}  e6 {[%clk 0:02:40]} 6. e3 {[%clk 0:02:52]}  Nc6 {[%clk 0:02:39]} 7. Bd3 {[%clk 0:02:49]}  Be7 {[%clk 0:02:39]} 8. Nge2 {[%clk 0:02:43]}  O-O {[%clk 0:02:38]} 9. O-O {[%clk 0:02:38]}  a6 {[%clk 0:02:34]} 10. Rc1 {[%clk 0:02:36]}  Bd7 {[%clk 0:02:29]} 11. Bb1 {[%clk 0:02:26]}  h6 {[%clk 0:02:19]} 12. Bxf6 {[%clk 0:02:12]}  Bxf6 {[%clk 0:02:20]} 13. Qd3 {[%clk 0:02:11]}  g6 {[%clk 0:02:13]} 14. Nf4 {[%clk 0:02:06]}  b5 {[%clk 0:01:59]} 15. Nxg6 {[%clk 0:01:52]}  fxg6 {[%clk 0:02:00]} 16. Qxg6+ {[%clk 0:01:50]}  Bg7 {[%clk 0:02:00]} 17. Qh7+ {[%clk 0:01:47]}  Kf7 {[%clk 0:02:01]} 18. Qg6+ {[%clk 0:01:40]}  Kg8 {[%clk 0:02:00]} 19. Qh7+ {[%clk 0:01:38]}  Kf7 {[%clk 0:02:01]} 20. Qg6+ {[%clk 0:01:29]}  Kg8 {[%clk 0:01:58]} 1/2-1/2


[Site "https://www.chess.com"]

[Event "Titled Tuesday Blitz March 22 Early 2022"]
[White "Schrik, Rachid"]
[Black "Golubev, Mikhail"]
[WhiteFideId "1009818"]
[BlackFideId "14100983"]
[WhiteElo "2070"]
[BlackElo "2374"]
[Result "0-1"]
[Round "02"]
[TimeControl "180+1"]
[Date "2022.03.22"]
[WhiteClock "0:00:42"]
[BlackClock "0:00:19"]

1. d4 {[%clk 0:02:59]}  Nf6 {[%clk 0:02:59]} 2. c4 {[%clk 0:02:58]}  g6 {[%clk 0:02:59]} 3. Nc3 {[%clk 0:02:58]}  Bg7 {[%clk 0:02:59]} 4. e4 {[%clk 0:02:58]}  d6 {[%clk 0:02:58]} 5. f3 {[%clk 0:02:58]}  O-O {[%clk 0:02:57]} 6. Bg5 {[%clk 0:02:57]}  Nc6 {[%clk 0:02:56]} 7. Qd2 {[%clk 0:02:54]}  a6 {[%clk 0:02:56]} 8. Rc1 {[%clk 0:02:53]}  e5 {[%clk 0:02:46]} 9. d5 {[%clk 0:02:51]}  Nd4 {[%clk 0:02:46]} 10. Nge2 {[%clk 0:02:51]}  c5 {[%clk 0:02:39]} 11. Nxd4 {[%clk 0:02:40]}  cxd4 {[%clk 0:02:32]} 12. Nd1 {[%clk 0:02:40]}  h6 {[%clk 0:02:30]} 13. Bh4 {[%clk 0:02:38]}  g5 {[%clk 0:02:25]} 14. Bf2 {[%clk 0:02:34]}  Nh5 {[%clk 0:02:06]} 15. Bd3 {[%clk 0:02:28]}  Nf4 {[%clk 0:02:04]} 16. g3 {[%clk 0:02:25]}  Nxd3+ {[%clk 0:02:02]} 17. Qxd3 {[%clk 0:02:25]}  f5 {[%clk 0:02:02]} 18. O-O {[%clk 0:02:19]}  fxe4 {[%clk 0:01:59]} 19. Qxe4 {[%clk 0:02:08]}  Bf5 {[%clk 0:01:50]} 20. Qe2 {[%clk 0:02:08]}  Bh3 {[%clk 0:01:48]} 21. Re1 {[%clk 0:02:07]}  Qf6 {[%clk 0:01:46]} 22. c5 {[%clk 0:02:06]}  dxc5 {[%clk 0:01:41]} 23. Rxc5 {[%clk 0:02:06]}  Qxf3 {[%clk 0:01:38]} 24. Qxf3 {[%clk 0:02:05]}  Rxf3 {[%clk 0:01:38]} 25. Rc7 {[%clk 0:02:04]}  Rd8 {[%clk 0:01:30]} 26. g4 {[%clk 0:01:24]}  Rxd5 {[%clk 0:01:21]} 27. Bg3 {[%clk 0:01:22]}  Bxg4 {[%clk 0:01:17]} 28. Nf2 {[%clk 0:01:22]}  Bf5 {[%clk 0:01:14]} 29. Ne4 {[%clk 0:01:14]}  Re3 {[%clk 0:00:34]} 30. Rxe3 {[%clk 0:01:04]}  dxe3 {[%clk 0:00:35]} 31. Nc3 {[%clk 0:01:05]}  Rd2 {[%clk 0:00:32]} 32. Na4 {[%clk 0:00:59]}  Rd1+ {[%clk 0:00:25]} 33. Kg2 {[%clk 0:00:57]}  Be4+ {[%clk 0:00:24]} 34. Kh3 {[%clk 0:00:56]}  e2 {[%clk 0:00:24]} 35. Nc5 {[%clk 0:00:42]}  Bf5+ {[%clk 0:00:19]} 36. Kg2 {[%clk 0:00:42]}  e1=Q {[%clk 0:00:19]} 0-1


[Site "https://www.chess.com"]

[Event "Titled Tuesday Blitz March 22 Early 2022"]
[White "Siva Mahadevan"]
[Black "Ronka, Erik"]
[WhiteFideId "25043153"]
[BlackFideId "505080"]
[WhiteElo "2203"]
[BlackElo "2264"]
[Result "1-0"]
[Round "02"]
[TimeControl "180+1"]
[Date "2022.03.22"]
[WhiteClock "0:00:07"]
[BlackClock "0:00:02"]

1. e4 {[%clk 0:02:59]}  c5 {[%clk 0:03:00]} 2. Nf3 {[%clk 0:03:00]}  e6 {[%clk 0:03:00]} 3. d4 {[%clk 0:03:00]}  cxd4 {[%clk 0:03:01]} 4. Nxd4 {[%clk 0:03:01]}  a6 {[%clk 0:03:02]} 5. Nc3 {[%clk 0:03:00]}  Qc7 {[%clk 0:03:01]} 6. Bd3 {[%clk 0:03:01]}  b5 {[%clk 0:03:01]} 7. O-O {[%clk 0:03:00]}  Nf6 {[%clk 0:03:01]} 8. Re1 {[%clk 0:02:57]}  d6 {[%clk 0:03:00]} 9. a4 {[%clk 0:02:55]}  b4 {[%clk 0:02:59]} 10. Na2 {[%clk 0:02:55]}  Be7 {[%clk 0:02:33]} 11. Bd2 {[%clk 0:02:06]}  a5 {[%clk 0:02:29]} 12. c3 {[%clk 0:02:05]}  Qb6 {[%clk 0:02:18]} 13. Be3 {[%clk 0:01:47]}  Qb7 {[%clk 0:02:17]} 14. cxb4 {[%clk 0:01:41]}  axb4 {[%clk 0:02:18]} 15. Bb5+ {[%clk 0:01:38]}  Bd7 {[%clk 0:02:14]} 16. f3 {[%clk 0:01:33]}  O-O {[%clk 0:02:06]} 17. Nxb4 {[%clk 0:01:24]}  d5 {[%clk 0:02:06]} 18. e5 {[%clk 0:01:24]}  Bxb4 {[%clk 0:01:41]} 19. exf6 {[%clk 0:01:24]}  Bxb5 {[%clk 0:01:29]} 20. Nxb5 {[%clk 0:01:19]}  Bxe1 {[%clk 0:01:24]} 21. Qxe1 {[%clk 0:01:20]}  Nd7 {[%clk 0:01:21]} 22. fxg7 {[%clk 0:00:50]}  Rfb8 {[%clk 0:01:19]} 23. Qh4 {[%clk 0:00:44]}  Nb6 {[%clk 0:00:39]} 24. b3 {[%clk 0:00:38]}  Qd7 {[%clk 0:00:35]} 25. Bd4 {[%clk 0:00:33]}  Nc8 {[%clk 0:00:31]} 26. Be5 {[%clk 0:00:28]}  Rb7 {[%clk 0:00:21]} 27. Rc1 {[%clk 0:00:25]}  Na7 {[%clk 0:00:13]} 28. Nd4 {[%clk 0:00:23]}  Rc8 {[%clk 0:00:11]} 29. Re1 {[%clk 0:00:21]}  Nc6 {[%clk 0:00:10]} 30. Nxc6 {[%clk 0:00:17]}  Rxc6 {[%clk 0:00:10]} 31. b4 {[%clk 0:00:16]}  Rc4 {[%clk 0:00:10]} 32. Qf6 {[%clk 0:00:15]}  Rcxb4 {[%clk 0:00:10]} 33. a5 {[%clk 0:00:15]}  Rb1 {[%clk 0:00:10]} 34. Rxb1 {[%clk 0:00:13]}  Rxb1+ {[%clk 0:00:11]} 35. Kf2 {[%clk 0:00:14]}  Rb5 {[%clk 0:00:11]} 36. Bc3 {[%clk 0:00:13]}  Qc8 {[%clk 0:00:11]} 37. h4 {[%clk 0:00:13]}  Rc5 {[%clk 0:00:11]} 38. Bd4 {[%clk 0:00:13]}  Rc2+ {[%clk 0:00:11]} 39. Kg3 {[%clk 0:00:13]}  Ra2 {[%clk 0:00:09]} 40. Bb6 {[%clk 0:00:14]}  Ra4 {[%clk 0:00:06]} 41. h5 {[%clk 0:00:13]}  Qb8+ {[%clk 0:00:06]} 42. Kh3 {[%clk 0:00:14]}  Ra2 {[%clk 0:00:06]} 43. h6 {[%clk 0:00:10]}  Ra1 {[%clk 0:00:06]} 44. Qxa1 {[%clk 0:00:10]}  Qf4 {[%clk 0:00:05]} 45. Qd4 {[%clk 0:00:08]}  Qxh6+ {[%clk 0:00:04]} 46. Qh4 {[%clk 0:00:08]}  Qd2 {[%clk 0:00:02]} 47. a6 {[%clk 0:00:07]} 1-0


[Site "https://www.chess.com"]